{"text_format":"3","workbook":"xlsx","n_sheets":23,"sheets":["Başvuran bilgileri","Sayfa1","Başvuran Bilgi","Makale ödülü","Makale Puan Tablosu","Sanat ve tasarım ödülü","Kitap ödülü","Patent ödülü","Proje performans ödülü","Atıf ödülü","Spor ödülü","Eğitim-Öğretim ödülü","Eğitim Puan Tablosu","Topluma katkı ödülü","Alan adı","Yazar Katsayıları","Sanat Puan Tablosu","Patent Puan Tablosu","Kitap Puan Tablosu","Proje Puan Tablosu","Spor Puan Tablosu","Topluma Katkı Tablosu","Atıf Puan Tablosu"],"not_rendered":{"macros":1},"read":"whole","date_system":"1900"}

{"sheet":"Başvuran bilgileri","index":0,"n_rows":29,"n_cols":12,"rows_kept":29,"hidden":true}
["Adı Soyadı","Alan","Makale Puanı","Sanat Puanı","Patent Puanı","Kitap Puanı","Proje Puanı","Spor Puanı","Topluma Katkı Puanı","Eğitim Puanı","Atıf Puanı","Toplam Puan"]
[1,{"$nulls":8},2,0,{"$f":"SUM($C2:$K2)","v":2}]
["Örnek yayın adı 1",null,24,null,null,7.5,{"$nulls":5},{"$f":"SUM($C3:$K3)","v":31.5}]
["Örnek Etkinlik adı 1",null,null,15,{"$nulls":3},0,{"$nulls":3},{"$f":"SUM($C4:$K4)","v":15}]
["Örnek yayın adı 2",null,7.5,null,null,12,{"$nulls":5},19.5]
["Örnek Patent adı 1",{"$nulls":3},2.5,{"$nulls":6},2.5]
["Örnek proje adı 1",{"$nulls":5},20,{"$nulls":4},20]
[2,{"$nulls":8},2,0,{"$f":"SUM($C8:$K8)","v":2}]
["Etkinlik adı",{"$nulls":7},5,null,null,5]
["Etkinlik adı 2",{"$nulls":7},10,null,null,10]
["Örnek yayın adı 3",null,2.6,{"$nulls":8},2.6]
["Örnek yayın adı 4",null,7,{"$nulls":8},{"$f":"SUM($C12:$K12)","v":7}]
["Örnek Etkinlik adı 2",null,null,13.5,{"$nulls":3},0,{"$nulls":3},{"$f":"SUM($C13:$K13)","v":13.5}]
[3,{"$nulls":8},3,0,{"$f":"SUM($C14:$K14)","v":3}]
[4,{"$nulls":8},3,0,{"$f":"SUM($C15:$K15)","v":3}]
[5,{"$nulls":8},5,0,{"$f":"SUM($C16:$K16)","v":5}]
["Örnek etkinlik adı 3",{"$nulls":6},0,{"$nulls":3},0]
["aa",null,16,15,{"$nulls":3},0,{"$nulls":3},{"$f":"SUM($C18:$K18)","v":31}]
["bb",{"$nulls":6},0,{"$nulls":3},0]
["Örnek proje adı 2",{"$nulls":5},15,{"$nulls":4},15]
["a",null,null,0,null,null,10,null,10,null,null,{"$f":"SUM($C21:$K21)","v":20}]
["b",null,null,0,{"$nulls":4},10,null,null,10]
[6,{"$nulls":8},3,null,3]
["Örnek yayın adı 5",null,8,{"$nulls":8},8]
[7,{"$nulls":8},1,null,1]
[8,{"$nulls":8},3,null,3]
[9,{"$nulls":8},10,null,10]
[10,{"$nulls":8},1,null,1]
[11,{"$nulls":8},5,null,5]

{"sheet":"Sayfa1","index":1,"n_rows":0,"n_cols":0,"rows_kept":0,"hidden":true}

{"sheet":"Başvuran Bilgi","index":2,"n_rows":23,"n_cols":4,"rows_kept":23,"merged":[[0,0,0,3]]}
["Bilgiler"]
["Unvanı"]
["Adı"]
["Soyadı"]
["Birimi"]
["Bölümü"]
["Proje ödülü için alan bilgisi","Fen bilimleri, matematik, mühendislik, ziraat, orman ve su ürünleri, spor bilimleri, sağlık bilimleri"]
["Makale ödülü için alan bilgisi","Fen ve Mühendislik Bilimleri"]
["Üniversitemizdeki hizmet yılınız"]
["Kamudaki hizmet yılınız"]
["Akademik Personel Ödül Kategorileri","Toplam Puan","Bilgi veren kişi/birim","Ödülün verileceği yer"]
["Uluslararası Değerlendirmelere Göre En Etkili Bilim İnsanı Ödülü",null,"Ödül Komisyonu","Ödül Töreni"]
["Makale Ödülü",{"$f":"SUM('Makale ödülü'!G:G)","v":49.1},"Başvuru yapan aday","Ödül Töreni"]
["Sanat ve Tasarım Ödülü",{"$f":"SUM('Sanat ve tasarım ödülü'!I:I)","v":70},"Başvuru yapan aday","Ödül Töreni"]
["Patent Ödülü",{"$f":"SUM('Patent ödülü'!G:G)","v":0},"Başvuru yapan aday","Ödül Töreni"]
["Kitap Ödülü",{"$f":"SUM('Kitap ödülü'!G:G)","v":19.5},"Başvuru yapan aday","Ödül Töreni"]
["Proje Performans Ödülü",{"$f":"SUM('Proje performans ödülü'!G:G)","v":35},"Başvuru yapan aday","Ödül Töreni"]
["Atıf Ödülü",{"$f":"SUM('Atıf ödülü'!E:E)","v":0},"Başvuru yapan aday","Ödül Töreni"]
["Spor Ödülü",{"$f":"SUM('Spor ödülü'!E:E)","v":40},"Başvuru yapan aday","Ödül Töreni"]
["Topluma Katkı Ödülü",{"$f":"SUM('Topluma katkı ödülü'!G:G)","v":15},"Başvuru yapan aday","Ödül Töreni"]
["Eğitim-Öğretim Ödülü",{"$f":"SUM('Eğitim-Öğretim ödülü'!H:H)","v":0},"Başvuru yapan aday","Ödül Töreni"]
["Akademik Hizmet / Vefa Ödülü",null,"İlgili birim"]
["Teşekkür Belgesi/Plaketi",null,"İlgili birim","İlgili birim"]

{"sheet":"Makale ödülü","index":3,"n_rows":6,"n_cols":8,"rows_kept":6}
["Yayın Adı","Faaliyet Türü","Yazar Sayısı","Yazar Sırası","Temel Puan","Katsayı","Hesaplanan Puan","Yayın Linki"]
["Örnek yayın adı 1","SCI, SCIE, SSCI (Q1)",3,1,30,0.8,24]
["Örnek yayın adı 2","ESCI, Scopus, SPORT Discus (Tam metin)",3,2,10,0.75,7.5]
["Örnek yayın adı 3","Diğer ulusal hakemli dergi (Tam metin/derleme)",4,2,4,0.65,2.6]
["Örnek yayın adı 4","TR Dizin (Tam metin/derleme)",4,1,10,0.7,7]
["Örnek yayın adı 5","SCI, SCIE, SSCI (Q4)",3,1,10,0.8,8]

{"sheet":"Makale Puan Tablosu","index":4,"n_rows":12,"n_cols":2,"rows_kept":12,"hidden":true}
["Faaliyet Türü","Temel Puan"]
["SCI, SCIE, SSCI (Q1)",30]
["SCI, SCIE, SSCI (Q2)",20]
["SCI, SCIE, SSCI (Q3)",15]
["SCI, SCIE, SSCI (Q4)",10]
["AHCI (Tam metin)",20]
["ESCI, Scopus, SPORT Discus (Tam metin)",10]
["Diğer uluslararası indeksler (Tam metin)",5]
["Uluslararası teknik not/editöre mektup vb.",3]
["TR Dizin (Tam metin/derleme)",10]
["Diğer ulusal hakemli dergi (Tam metin/derleme)",4]
["Ulusal teknik not/editöre mektup vb.",2]

{"sheet":"Sanat ve tasarım ödülü","index":5,"n_rows":34,"n_cols":9,"rows_kept":34}
["Etkinlik adı","Faaliyet Türü","Yazar Sayısı","Yazar Sırası","Temel Puan","Katsayı","Hesaplanan Puan","Eser/faaliyet sayısı","Puan"]
["Örnek Etkinlik adı 1","Uluslararası sempozyum/festival vb. etkinliğe eserle katılmak",1,1,15,1,15,1,{"$f":"E2*H2","v":15}]
["Örnek Etkinlik adı 2","Sahne sanatları grubunun yurtdışında sunumu",2,1,15,0.9,13.5,2,{"$f":"E3*H3","v":30}]
["Örnek Etkinlik adı 3","Eserin yurtiçi müzelerce kabulü (eser başına)",1,1,15,1,15,1,15]
["Örnek Etkinlik adı 4","Sahne sanatları grubunun yurtiçinde sunumu",1,1,10,1,10,1,10]
[{"$nulls":8},0]
[{"$nulls":8},0]
[{"$nulls":8},0]
[{"$nulls":8},0]
[{"$nulls":8},0]
[{"$nulls":8},0]
[{"$nulls":8},0]
[{"$nulls":8},0]
[{"$nulls":8},0]
[{"$nulls":8},0]
[{"$nulls":8},0]
[{"$nulls":8},0]
[{"$nulls":8},0]
[{"$nulls":8},0]
[{"$nulls":8},0]
[{"$nulls":8},0]
[{"$nulls":8},0]
[{"$nulls":8},0]
[{"$nulls":8},0]
[{"$nulls":8},0]
[{"$nulls":8},0]
[{"$nulls":8},0]
[{"$nulls":8},0]
[{"$nulls":8},0]
[{"$nulls":8},0]
[{"$nulls":8},0]
[{"$nulls":8},0]
[{"$nulls":8},0]
[{"$nulls":8},0]

{"sheet":"Kitap ödülü","index":6,"n_rows":3,"n_cols":8,"rows_kept":3}
["Yayın adı","Faaliyet Türü","Yazar Sayısı","Yazar Sırası","Temel Puan","Katsayı","Hesaplanan Puan","Yayın Linki"]
["Örnek yayın adı 1","Diğer uluslararası/ulusal kitapta bölüm yazarlığı",3,2,10,0.75,7.5]
["Örnek yayın adı 2","Diğer uluslararası/ulusal telif kitap yazarlığı",3,1,15,0.8,12]

{"sheet":"Patent ödülü","index":7,"n_rows":2,"n_cols":5,"rows_kept":2}
["Patent adı","Faaliyet Türü","Katılımcı Sayısı","Temel Puan","Bölünen Puan"]
["Örnek Patent adı 1","Kişisel patent başvurusunda bulunmuş olmak",2,5,2.5]

{"sheet":"Proje performans ödülü","index":8,"n_rows":3,"n_cols":7,"rows_kept":3}
["Proje adı","Faaliyet Türü","Yazar Sayısı","Yazar Sırası","Temel Puan","Katsayı","Hesaplanan Puan"]
["Örnek proje adı 1","Uluslararası/Ulusal Proje (TÜBİTAK vb.) - Yürütücü/Koordinatör",null,null,20,1,20]
["Örnek proje adı 2","Uluslararası/Ulusal Proje (TÜBİTAK vb.) - Araştırmacı",null,null,15,1,15]

{"sheet":"Atıf ödülü","index":9,"n_rows":6,"n_cols":5,"rows_kept":6}
["Sıra","Faaliyet Türü","Adet / Değer","Temel Puan","Hesaplanan Puan"]
[1,"SCI, Scopus vb. indeksli dergilerde atıf",0,3,0]
[2,"Web of Science (BKCI) kitapta atıf",0,2,0]
[3,"TR Dizin indeksli dergilerde atıf",0,2,0]
[4,"Diğer uluslararası/ulusal yayınlarda atıf",0,1,0]
[5,"H-İndeks Puanı (WoS yada Scopus)",0,1,0]

{"sheet":"Spor ödülü","index":10,"n_rows":36,"n_cols":7,"rows_kept":36}
["Etkinlik adı","Faaliyet Türü","Yazar Sayısı","Yazar Sırası","Puan","Katsayı","Hesaplanan Puan"]
["Örnek etkinlik adı 1","Yetiştirdiği sporcuların uluslararası turnuvalara katılımı (sporcu başına)",null,null,15,1,{"$f":"E2*F2","v":15}]
["Örnek etkinlik adı 2","Yetiştirdiği sporcuların ulusal turnuvalara katılımı",null,null,5,1,{"$f":"E3*F3","v":5}]
["Örnek etkinlik adı 3","Yetiştirdiği sporcuların ulusal turnuvalarda ilk 3'e girmesi",null,null,20,1,0]
[{"$nulls":5},0,0]
[{"$nulls":5},0,0]
[{"$nulls":5},1,0]
[{"$nulls":5},1,0]
[{"$nulls":5},1,0]
[{"$nulls":5},1,0]
[{"$nulls":5},1,0]
[{"$nulls":5},1,0]
[{"$nulls":5},1,0]
[{"$nulls":5},1,0]
[{"$nulls":5},1,0]
[{"$nulls":5},1,0]
[{"$nulls":5},1,0]
[{"$nulls":5},1,0]
[{"$nulls":5},1,0]
[{"$nulls":5},1,0]
[{"$nulls":5},1,0]
[{"$nulls":5},1,0]
[{"$nulls":5},1,0]
[{"$nulls":5},1,0]
[{"$nulls":5},1,0]
[{"$nulls":5},1,0]
[{"$nulls":5},1,0]
[{"$nulls":5},1,0]
[{"$nulls":5},1,0]
[{"$nulls":5},1,0]
[{"$nulls":5},1,0]
[{"$nulls":5},1,0]
[{"$nulls":5},1,0]
[{"$nulls":5},1,0]
[{"$nulls":5},1,0]
[{"$nulls":5},1,0]

{"sheet":"Eğitim-Öğretim ödülü","index":11,"n_rows":36,"n_cols":8,"rows_kept":36}
["Sıra","Faaliyet Türü","Yazar Sayısı","Faaliyet sayısı","Temel Puan","Katsayı","Hesaplanan Puan","Puan"]
[1,"Ön lisans/lisans düzeyde ders verme (ders başına)",1,0,2,1,2,{"$f":"D2*E2","v":0}]
[2,"Staj/Uygulama ders faaliyetleri (ders başına)",null,0,2,1,2,{"$f":"D3*E3","v":0}]
[3,"Akademik birimde seminer, konferans vb. faaliyet (faaliyet başına)",null,0,3,1,3,0]
[4,"Bitirilmiş Yüksek Lisans tez danışmanlığı",null,0,3,1,3,0]
[5,"Bitirilmiş Doktora tez danışmanlığı",1,0,5,1,5,0]
[6,"TÜBİTAK 2209 vb. proje danışmanlığı (danışmanlık başına)",1,0,3,1,3,0]
[7,"Lisans öğrenci danışmanlığı (danışmanlık başına)",null,0,1,1,1,0]
[8,"Erasmus koordinatörlüğü, komisyon üyeliği vb. (görev başına)",null,0,3,1,3,0]
[9,"Yeni eğitim laboratuvarı/teknik altyapı kurma",null,0,10,1,10,0]
[10,"Hizmet içi eğitim/eğiticilerin eğitimi etkinliğine katılma",null,0,1,1,1,0]
[11,"TÜBİTAK BİDEB projelerinde akademik görev alma",null,0,5,1,5,0]
[{"$nulls":6},{"$f":"D13*E13","v":0},0]
[{"$nulls":6},0,0]
[{"$nulls":6},0,0]
[{"$nulls":6},0,0]
[{"$nulls":6},0,0]
[{"$nulls":6},0,0]
[{"$nulls":6},0,0]
[{"$nulls":6},0,0]
[{"$nulls":6},0,0]
[{"$nulls":6},0,0]
[{"$nulls":6},0,0]
[{"$nulls":6},0,0]
[{"$nulls":6},0,0]
[{"$nulls":6},0,0]
[{"$nulls":6},0,0]
[{"$nulls":7},0]
[{"$nulls":7},0]
[{"$nulls":7},0]
[{"$nulls":7},0]
[{"$nulls":7},0]
[{"$nulls":7},0]
[{"$nulls":7},0]
[{"$nulls":7},0]
[{"$nulls":7},0]

{"sheet":"Eğitim Puan Tablosu","index":12,"n_rows":12,"n_cols":2,"rows_kept":12,"hidden":true}
["Faaliyet Türü","Temel Puan"]
["Ön lisans/lisans düzeyde ders verme (ders başına)",2]
["Staj/Uygulama ders faaliyetleri (ders başına)",2]
["Akademik birimde seminer, konferans vb. faaliyet (faaliyet başına)",3]
["Bitirilmiş Yüksek Lisans tez danışmanlığı",3]
["Bitirilmiş Doktora tez danışmanlığı",5]
["TÜBİTAK 2209 vb. proje danışmanlığı (danışmanlık başına)",3]
["Lisans öğrenci danışmanlığı (danışmanlık başına)",1]
["Erasmus koordinatörlüğü, komisyon üyeliği vb. (görev başına)",3]
["Yeni eğitim laboratuvarı/teknik altyapı kurma",10]
["Hizmet içi eğitim/eğiticilerin eğitimi etkinliğine katılma",1]
["TÜBİTAK BİDEB projelerinde akademik görev alma",5]

{"sheet":"Topluma katkı ödülü","index":13,"n_rows":3,"n_cols":7,"rows_kept":3}
["Etkinlik adı","Faaliyet Türü","Yazar Sayısı","Yazar Sırası","Temel Puan","Katsayı","Hesaplanan Puan"]
["Etkinlik adı 1","Öğrenci topluluğu/kulüp akademik başkanlığı/danışmanlığı",null,null,5,1,5]
["Etkinlik adı 2","Bakanlık, kurum vb. komisyon üyeliği/temsilcilik",null,null,10,1,10]

{"sheet":"Alan adı","index":14,"n_rows":19,"n_cols":1,"rows_kept":19,"hidden":true}
["Fen bilimleri, matematik, mühendislik, ziraat, orman ve su ürünleri, spor bilimleri, sağlık bilimleri"]
["Güzel sanatlar, güzel sanatlar eğitimi, mimarlık, planlama ve tasarım"]
["Eğitim bilimleri, sosyal beşeri ve idari bilimler, filoloji, ilahiyat, hukuk temel alanları"]
[]
["Prof. Dr."]
["Doç. Dr."]
["Dr. Öğr. Üyesi"]
["Öğr. Gör. Dr."]
["Araş. Gör. Dr."]
["Öğr. Gör."]
["Araş. Gör."]
["Uzman"]
["Uzman Dr."]
[]
[]
[]
["Fen ve Mühendislik Bilimleri"]
["Sosyal ve Beşeri Bilimler"]
["Sağlık ve Yaşam Bilimleri"]

{"sheet":"Yazar Katsayıları","index":15,"n_rows":7,"n_cols":7,"rows_kept":7,"hidden":true}
["N","1. İsim","2. İsim","3. İsim","4. İsim","5. İsim","N>5"]
[1,{"v":1,"d":"1.00"},{"v":0.9,"d":"0.90"},{"v":0.8,"d":"0.80"},{"v":0.7,"d":"0.70"},{"v":0.6,"d":"0.60"},{"v":0.5,"d":"0.50"}]
[2,{"v":0.9,"d":"0.90"},0.85,0.75,0.65,0.55,0.45]
[3,{"v":0.8,"d":"0.80"},0.75,{"v":0.7,"d":"0.70"},{"v":0.6,"d":"0.60"},{"v":0.5,"d":"0.50"},{"v":0.4,"d":"0.40"}]
[4,{"v":0.7,"d":"0.70"},0.65,{"v":0.6,"d":"0.60"},0.55,0.45,0.35]
[5,{"v":0.6,"d":"0.60"},0.55,{"v":0.5,"d":"0.50"},0.45,{"v":0.4,"d":"0.40"},{"v":0.3,"d":"0.30"}]
["N>5",{"v":0.5,"d":"0.50"},0.45,{"v":0.4,"d":"0.40"},0.35,{"v":0.3,"d":"0.30"},{"v":0.2,"d":"0.20"}]

{"sheet":"Sanat Puan Tablosu","index":16,"n_rows":19,"n_cols":2,"rows_kept":19,"hidden":true}
["Faaliyet Türü","Temel Puan"]
["Özgün eserin yurtdışında kurumlarca satın alınması/yayınlanması",30]
["Özgün eserin yurtiçinde kurumlarca satın alınması/yayınlanması",20]
["Uluslararası jürili karma etkinliğe katılmak",7]
["Jürili karma etkinlikte jüri üyeliği (Ulusal)",1]
["Jürili karma etkinlikte jüri üyeliği (Uluslararası)",2]
["Ulusal jürili karma etkinliğe katılmak",4]
["Yurtdışında kişisel etkinlik",5]
["Yurtiçinde kişisel etkinlik",3]
["Yurtdışında karma/grup etkinliğine katılmak",4]
["Yurtiçinde karma/grup etkinliğine katılmak",2]
["Etkinlik yöneticiliği/küratörlüğü (Ulusal)",10]
["Etkinlik yöneticiliği/küratörlüğü (Uluslararası)",15]
["Eserin yurtiçi müzelerce kabulü (eser başına)",15]
["Eserin yurtdışı müzelerce kabulü (eser başına)",30]
["Uluslararası sempozyum/festival vb. etkinliğe eserle katılmak",15]
["Ulusal sempozyum/festival vb. etkinliğe eserle katılmak",10]
["Sahne sanatları grubunun yurtdışında sunumu",15]
["Sahne sanatları grubunun yurtiçinde sunumu",10]

{"sheet":"Patent Puan Tablosu","index":17,"n_rows":8,"n_cols":2,"rows_kept":8,"hidden":true}
["Faaliyet Türü","Temel Puan"]
["Uluslararası tescilli patent",20]
["Ulusal tescilli patent",10]
["Kişisel patent başvurusunda bulunmuş olmak",5]
["Tescil Edilmiş Faydalı Model",10]
["Başvurusu yapılan faydalı model",5]
["Tescillenmiş endüstriyel tasarım",10]
["Başvurusu yapılan endüstriyel tasarım",5]

{"sheet":"Kitap Puan Tablosu","index":18,"n_rows":9,"n_cols":2,"rows_kept":9,"hidden":true}
["Faaliyet Türü","Temel Puan"]
["Web of Science (BKCI) telif kitap yazarlığı",20]
["Web of Science (BKCI) kitapta bölüm yazarlığı",10]
["Diğer uluslararası/ulusal telif kitap yazarlığı",15]
["Diğer uluslararası/ulusal kitapta bölüm yazarlığı",10]
["Ansiklopedide bölüm/madde tanımlaması",10]
["Uluslararası kitap/dergide kişiye özgü denklem, şekil vb.",10]
["Kitap çevirisi/aktarması (kitap başına)",5]
["Sözlükte bir madde tanımlaması",1]

{"sheet":"Proje Puan Tablosu","index":19,"n_rows":8,"n_cols":2,"rows_kept":8,"hidden":true}
["Faaliyet Türü","Temel Puan"]
["Uluslararası/Ulusal Proje (TÜBİTAK vb.) - Yürütücü/Koordinatör",20]
["Uluslararası/Ulusal Proje (TÜBİTAK vb.) - Araştırmacı",15]
["Üniversite BAP/İhtisaslaşma Projesi - Yürütücü",10]
["Uluslararası/Ulusal Projede diğer roller",5]
["Kamu/Özel AR-GE/ÜR-GE Projesi - Yürütücü/Araştırmacı",5]
["Üniversite BAP/İhtisaslaşma Projesi - Araştırmacı",4]
["Öğrenci Projelerinde Danışmanlık (TÜBİTAK 2209 vb.)",4]

{"sheet":"Spor Puan Tablosu","index":20,"n_rows":7,"n_cols":2,"rows_kept":7,"hidden":true}
["Faaliyet Türü","Temel Puan"]
["Yetiştirdiği sporcuların ulusal turnuvalarda ilk 3'e girmesi",20]
["Yetiştirdiği sporcuların uluslararası turnuvalarda ilk 3'e girmesi",30]
["Yetiştirdiği sporcuların ulusal turnuvalara katılımı",5]
["Yetiştirdiği sporcuların uluslararası turnuvalara katılımı (sporcu başına)",15]
["Milli takımlarda antrenörlük yapmak",10]
["Milli takıma sporcu yetiştirmek",10]

{"sheet":"Topluma Katkı Tablosu","index":21,"n_rows":7,"n_cols":2,"rows_kept":7,"hidden":true}
["Faaliyet Türü","Temel Puan"]
["Sonuçlandırılmış sosyal sorumluluk projesi",15]
["Davetli konuşmacı (TV, radyo, konferans vb.)",10]
["STK'lar vb. ile ortak yürütülen toplumsal faaliyetler",10]
["Bakanlık, kurum vb. komisyon üyeliği/temsilcilik",10]
["Sosyal medyada topluma yönelik bilgilendirme sunumları",5]
["Öğrenci topluluğu/kulüp akademik başkanlığı/danışmanlığı",5]

{"sheet":"Atıf Puan Tablosu","index":22,"n_rows":6,"n_cols":2,"rows_kept":6,"hidden":true}
["Faaliyet Türü","Temel Puan"]
["SCI, Scopus vb. indeksli dergilerde atıf",3]
["Web of Science (BKCI) kitapta atıf",2]
["TR Dizin indeksli dergilerde atıf",2]
["Diğer uluslararası/ulusal yayınlarda atıf",1]
["H-İndeks Puanı (WoS yada Scopus)",1]